[Event "Titled Tuesday Blitz March 01 Late 2022"]
[White "Aldokhin, Ivan"]
[Black "Dronavalli, Harika"]
[WhiteFideId "24115720"]
[BlackFideId "5015197"]
[WhiteElo "2231"]
[BlackElo "2382"]
[Result "0-1"]
[Round "08"]
[TimeControl "180+1"]
[Date "2022.03.01"]
[WhiteClock "0:00:05"]
[BlackClock "0:00:14"]

1. e4 {[%clk 0:03:00]}  c5 {[%clk 0:02:59]} 2. Nf3 {[%clk 0:03:01]}  e6 {[%clk 0:02:58]} 3. d4 {[%clk 0:03:01]}  cxd4 {[%clk 0:02:58]} 4. Nxd4 {[%clk 0:03:02]}  a6 {[%clk 0:02:58]} 5. Nc3 {[%clk 0:03:02]}  b5 {[%clk 0:02:58]} 6. a4 {[%clk 0:02:58]}  b4 {[%clk 0:02:57]} 7. Na2 {[%clk 0:02:59]}  Bb7 {[%clk 0:02:40]} 8. f3 {[%clk 0:02:59]}  Nc6 {[%clk 0:02:37]} 9. Be3 {[%clk 0:02:57]}  Nge7 {[%clk 0:02:33]} 10. Nb3 {[%clk 0:02:51]}  d5 {[%clk 0:02:13]} 11. Bd3 {[%clk 0:02:29]}  Ng6 {[%clk 0:01:55]} 12. exd5 {[%clk 0:02:23]}  Qxd5 {[%clk 0:01:41]} 13. Be4 {[%clk 0:02:08]}  Qxd1+ {[%clk 0:01:40]} 14. Rxd1 {[%clk 0:02:09]}  f5 {[%clk 0:01:40]} 15. Bd3 {[%clk 0:01:57]}  Nce5 {[%clk 0:01:39]} 16. Be2 {[%clk 0:01:53]}  Bd5 {[%clk 0:01:36]} 17. Nac1 {[%clk 0:01:36]}  Nc4 {[%clk 0:01:27]} 18. Bd4 {[%clk 0:01:17]}  Kf7 {[%clk 0:01:27]} 19. Nd3 {[%clk 0:01:00]}  Be7 {[%clk 0:01:18]} 20. Nd2 {[%clk 0:00:57]}  Rhc8 {[%clk 0:01:12]} 21. f4 {[%clk 0:00:42]}  a5 {[%clk 0:01:01]} 22. Bh5 {[%clk 0:00:41]}  Bf6 {[%clk 0:00:59]} 23. Nb3 {[%clk 0:00:31]}  Bxd4 {[%clk 0:00:44]} 24. Nxd4 {[%clk 0:00:31]}  Kf6 {[%clk 0:00:44]} 25. Bxg6 {[%clk 0:00:28]}  hxg6 {[%clk 0:00:43]} 26. Kf2 {[%clk 0:00:25]}  g5 {[%clk 0:00:40]} 27. Rhe1 {[%clk 0:00:22]}  Nd6 {[%clk 0:00:35]} 28. fxg5+ {[%clk 0:00:20]}  Kxg5 {[%clk 0:00:34]} 29. Nxe6+ {[%clk 0:00:20]}  Kf6 {[%clk 0:00:34]} 30. Ndf4 {[%clk 0:00:18]}  Ne4+ {[%clk 0:00:33]} 31. Rxe4 {[%clk 0:00:11]}  Bxe4 {[%clk 0:00:33]} 32. Nd4 {[%clk 0:00:08]}  Bxc2 {[%clk 0:00:27]} 33. Rd2 {[%clk 0:00:05]}  Be4 {[%clk 0:00:27]} 34. h4 {[%clk 0:00:05]}  Ra7 {[%clk 0:00:24]} 35. Nb5 {[%clk 0:00:05]}  Re7 {[%clk 0:00:20]} 36. Nd6 {[%clk 0:00:05]}  Rc1 {[%clk 0:00:15]} 37. Nh5+ {[%clk 0:00:04]}  Ke5 {[%clk 0:00:15]} 38. b3 {[%clk 0:00:03]}  Rb1 {[%clk 0:00:14]} 39. Nc4+ {[%clk 0:00:03]}  Ke6 {[%clk 0:00:14]} 40. Rd6+ {[%clk 0:00:03]}  Kf7 {[%clk 0:00:14]} 41. Nf4 {[%clk 0:00:04]}  Rxb3 {[%clk 0:00:14]} 42. Rg6 {[%clk 0:00:04]}  Rc3 {[%clk 0:00:14]} 43. Nd6+ {[%clk 0:00:04]}  Kg8 {[%clk 0:00:13]} 44. Nb5 {[%clk 0:00:04]}  Rc2+ {[%clk 0:00:13]} 45. Kg3 {[%clk 0:00:03]}  b3 {[%clk 0:00:14]} 46. Rb6 {[%clk 0:00:03]}  b2 {[%clk 0:00:14]} 47. Nd6 {[%clk 0:00:04]}  Rc3+ {[%clk 0:00:13]} 48. Kf2 {[%clk 0:00:03]}  b1=Q {[%clk 0:00:13]} 49. Rxb1 {[%clk 0:00:03]}  Bxb1 {[%clk 0:00:14]} 50. Ng6 {[%clk 0:00:03]}  Rc2+ {[%clk 0:00:15]} 51. Kg3 {[%clk 0:00:03]}  Rd7 {[%clk 0:00:15]} 52. Nxf5 {[%clk 0:00:04]}  Rd3+ {[%clk 0:00:16]} 53. Kf4 {[%clk 0:00:04]}  Rc4+ {[%clk 0:00:16]} 54. Kg5 {[%clk 0:00:04]}  Ra3 {[%clk 0:00:13]} 55. g4 {[%clk 0:00:05]}  Rc5 {[%clk 0:00:13]} 56. Ne7+ {[%clk 0:00:06]}  Kf7 {[%clk 0:00:13]} 57. h5 {[%clk 0:00:05]}  Bxf5 {[%clk 0:00:13]} 58. Nxf5 {[%clk 0:00:05]}  Rxf5+ {[%clk 0:00:14]} 59. gxf5 {[%clk 0:00:05]}  Rxa4 {[%clk 0:00:14]} 0-1


[Site "https://www.chess.com"]

[Event "Titled Tuesday Blitz March 01 Late 2022"]
[White "Al-Tarboush, Ward"]
[Black "Djokic, Mihailo"]
[WhiteFideId "7601450"]
[BlackFideId "976440"]
[WhiteElo "2276"]
[BlackElo "2008"]
[Result "0-1"]
[Round "08"]
[TimeControl "180+1"]
[Date "2022.03.01"]
[WhiteClock "0:00:04"]
[BlackClock "0:00:03"]

1. d4 {[%clk 0:03:00]}  Nf6 {[%clk 0:02:59]} 2. Nc3 {[%clk 0:03:01]}  g6 {[%clk 0:03:00]} 3. e4 {[%clk 0:03:00]}  d6 {[%clk 0:03:01]} 4. Nf3 {[%clk 0:02:58]}  Nbd7 {[%clk 0:03:01]} 5. Be2 {[%clk 0:02:59]}  c5 {[%clk 0:03:01]} 6. O-O {[%clk 0:03:00]}  cxd4 {[%clk 0:03:01]} 7. Nxd4 {[%clk 0:03:00]}  Bg7 {[%clk 0:03:02]} 8. Be3 {[%clk 0:02:59]}  O-O {[%clk 0:03:02]} 9. h3 {[%clk 0:02:58]}  Nc5 {[%clk 0:03:03]} 10. Bf3 {[%clk 0:02:56]}  Nfd7 {[%clk 0:03:00]} 11. b4 {[%clk 0:02:56]}  Na6 {[%clk 0:03:00]} 12. a3 {[%clk 0:02:53]}  Ne5 {[%clk 0:03:00]} 13. Be2 {[%clk 0:02:52]}  Be6 {[%clk 0:03:00]} 14. f4 {[%clk 0:02:45]}  Rc8 {[%clk 0:02:59]} 15. Ncb5 {[%clk 0:02:13]}  Nc4 {[%clk 0:02:57]} 16. Bf2 {[%clk 0:02:12]}  Nb2 {[%clk 0:02:30]} 17. Qc1 {[%clk 0:02:02]}  Na4 {[%clk 0:02:30]} 18. Nxa7 {[%clk 0:01:37]}  Nc3 {[%clk 0:02:27]} 19. Bxa6 {[%clk 0:01:30]}  bxa6 {[%clk 0:02:20]} 20. Qd2 {[%clk 0:01:20]}  Nxe4 {[%clk 0:02:12]} 21. Qd3 {[%clk 0:01:07]}  Nxf2 {[%clk 0:02:09]} 22. Rxf2 {[%clk 0:01:08]}  Rc7 {[%clk 0:01:50]} 23. Nac6 {[%clk 0:01:03]}  Qc8 {[%clk 0:01:40]} 24. Nxe6 {[%clk 0:00:56]}  Qxe6 {[%clk 0:01:35]} 25. Nd4 {[%clk 0:00:55]}  Qd5 {[%clk 0:01:27]} 26. Rd1 {[%clk 0:00:54]}  Rfc8 {[%clk 0:01:24]} 27. Rfd2 {[%clk 0:00:34]}  a5 {[%clk 0:01:14]} 28. b5 {[%clk 0:00:28]}  Bxd4+ {[%clk 0:01:13]} 29. Qxd4 {[%clk 0:00:29]}  Qxb5 {[%clk 0:01:13]} 30. Re1 {[%clk 0:00:20]}  h5 {[%clk 0:00:54]} 31. Rde2 {[%clk 0:00:18]}  Qb7 {[%clk 0:00:27]} 32. Re3 {[%clk 0:00:17]}  Rxc2 {[%clk 0:00:27]} 33. Rf3 {[%clk 0:00:15]}  R8c4 {[%clk 0:00:23]} 34. Qe3 {[%clk 0:00:13]}  e6 {[%clk 0:00:20]} 35. f5 {[%clk 0:00:12]}  exf5 {[%clk 0:00:17]} 36. Qg5 {[%clk 0:00:10]}  Re4 {[%clk 0:00:14]} 37. Rd1 {[%clk 0:00:08]}  Ree2 {[%clk 0:00:10]} 38. Rg3 {[%clk 0:00:08]}  Qb6+ {[%clk 0:00:10]} 39. Kh2 {[%clk 0:00:07]}  Qc7 {[%clk 0:00:05]} 40. Rg1 {[%clk 0:00:07]}  d5 {[%clk 0:00:05]} 41. h4 {[%clk 0:00:06]}  Rc4 {[%clk 0:00:03]} 42. Kh3 {[%clk 0:00:06]}  Ree4 {[%clk 0:00:03]} 43. Qxh5 {[%clk 0:00:02]}  Rxh4+ {[%clk 0:00:03]} 44. Qxh4 {[%clk 0:00:03]}  Rxh4+ {[%clk 0:00:03]} 45. Kxh4 {[%clk 0:00:04]}  Qf4+ {[%clk 0:00:03]} 46. Kh3 {[%clk 0:00:04]}  Qh6# {[%clk 0:00:03]} 0-1


[Site "https://www.chess.com"]

[Event "Titled Tuesday Blitz March 01 Late 2022"]
[White "Bilych, Olexiy"]
[Black "Maksimovic, Bojan"]
[WhiteFideId "14156504"]
[BlackFideId "14408120"]
[WhiteElo "2195"]
[BlackElo "2450"]
[Result "0-1"]
[Round "08"]
[TimeControl "180+1"]
[Date "2022.03.01"]
[WhiteClock "0:00:02"]
[BlackClock "0:00:01"]

1. d4 {[%clk 0:02:46]}  a6 {[%clk 0:03:00]} 2. e4 {[%clk 0:02:46]}  b5 {[%clk 0:03:01]} 3. Bd3 {[%clk 0:02:46]}  Bb7 {[%clk 0:03:01]} 4. Nf3 {[%clk 0:02:46]}  e6 {[%clk 0:03:02]} 5. O-O {[%clk 0:02:47]}  d6 {[%clk 0:03:01]} 6. a4 {[%clk 0:02:47]}  b4 {[%clk 0:03:01]} 7. c3 {[%clk 0:02:47]}  bxc3 {[%clk 0:03:00]} 8. Nxc3 {[%clk 0:02:48]}  Nd7 {[%clk 0:03:00]} 9. Re1 {[%clk 0:02:48]}  g6 {[%clk 0:03:00]} 10. Bg5 {[%clk 0:02:48]}  Ne7 {[%clk 0:03:00]} 11. e5 {[%clk 0:02:47]}  h6 {[%clk 0:03:00]} 12. Bh4 {[%clk 0:02:45]}  Bg7 {[%clk 0:02:59]} 13. exd6 {[%clk 0:02:42]}  cxd6 {[%clk 0:02:59]} 14. d5 {[%clk 0:02:43]}  e5 {[%clk 0:02:45]} 15. Ne4 {[%clk 0:02:43]}  Qb8 {[%clk 0:02:45]} 16. Bxe7 {[%clk 0:02:05]}  Kxe7 {[%clk 0:02:46]} 17. Nc3 {[%clk 0:02:00]}  Kf8 {[%clk 0:02:10]} 18. b4 {[%clk 0:01:57]}  a5 {[%clk 0:01:55]} 19. bxa5 {[%clk 0:01:55]}  Rxa5 {[%clk 0:01:47]} 20. Bb5 {[%clk 0:01:55]}  Nc5 {[%clk 0:01:38]} 21. Nd2 {[%clk 0:01:48]}  Kg8 {[%clk 0:01:32]} 22. Nc4 {[%clk 0:01:46]}  Ra7 {[%clk 0:01:32]} 23. Rb1 {[%clk 0:01:43]}  Qc7 {[%clk 0:01:01]} 24. Be8 {[%clk 0:01:31]}  Ra8 {[%clk 0:00:37]} 25. Nb5 {[%clk 0:01:30]}  Qe7 {[%clk 0:00:28]} 26. Bc6 {[%clk 0:01:11]}  Rd8 {[%clk 0:00:20]} 27. Bxb7 {[%clk 0:01:04]}  Nxb7 {[%clk 0:00:20]} 28. Na7 {[%clk 0:01:04]}  Ra8 {[%clk 0:00:15]} 29. Nc6 {[%clk 0:01:04]}  Qc7 {[%clk 0:00:15]} 30. a5 {[%clk 0:00:39]}  Kh7 {[%clk 0:00:14]} 31. Qb3 {[%clk 0:00:24]}  Nc5 {[%clk 0:00:10]} 32. Qb6 {[%clk 0:00:24]}  Qd7 {[%clk 0:00:10]} 33. Nb4 {[%clk 0:00:17]}  Rhd8 {[%clk 0:00:03]} 34. Nc6 {[%clk 0:00:14]}  Rdc8 {[%clk 0:00:03]} 35. Rec1 {[%clk 0:00:11]}  Bf8 {[%clk 0:00:03]} 36. Qb2 {[%clk 0:00:08]}  Nd3 {[%clk 0:00:03]} 37. Qc2 {[%clk 0:00:08]}  Nxc1 {[%clk 0:00:04]} 38. Rxc1 {[%clk 0:00:09]}  Rxc6 {[%clk 0:00:04]} 39. dxc6 {[%clk 0:00:10]}  Qxc6 {[%clk 0:00:05]} 40. Qb2 {[%clk 0:00:08]}  Rc8 {[%clk 0:00:02]} 41. Rc2 {[%clk 0:00:04]}  Qa4 {[%clk 0:00:03]} 42. h3 {[%clk 0:00:02]}  d5 {[%clk 0:00:02]} 43. Ne3 {[%clk 0:00:01]}  Rxc2 {[%clk 0:00:02]} 44. Nxc2 {[%clk 0:00:02]}  d4 {[%clk 0:00:01]} 0-1


[Site "https://www.chess.com"]

[Event "Titled Tuesday Blitz March 01 Late 2022"]
[White "Calcada, Lucas Galvan"]
[Black "Mogranzini, Roberto"]
[WhiteFideId "22746099"]
[BlackFideId "810894"]
[WhiteElo "1402"]
[BlackElo "2469"]
[Result "0-1"]
[Round "08"]
[TimeControl "180+1"]
[Date "2022.03.02"]
[WhiteClock "0:01:56"]
[BlackClock "0:01:36"]

1. e4 {[%clk 0:03:00]}  c5 {[%clk 0:02:58]} 2. Nf3 {[%clk 0:02:59]}  Nc6 {[%clk 0:02:59]} 3. d4 {[%clk 0:02:59]}  cxd4 {[%clk 0:02:59]} 4. Nxd4 {[%clk 0:02:57]}  Qb6 {[%clk 0:02:59]} 5. Nb3 {[%clk 0:02:55]}  Nf6 {[%clk 0:02:59]} 6. Nc3 {[%clk 0:02:51]}  e6 {[%clk 0:02:59]} 7. Be3 {[%clk 0:02:49]}  Qc7 {[%clk 0:02:59]} 8. f4 {[%clk 0:02:47]}  d6 {[%clk 0:02:58]} 9. Qf3 {[%clk 0:02:45]}  a6 {[%clk 0:02:57]} 10. O-O-O {[%clk 0:02:43]}  Be7 {[%clk 0:02:57]} 11. g4 {[%clk 0:02:43]}  b5 {[%clk 0:02:55]} 12. g5 {[%clk 0:02:43]}  Nd7 {[%clk 0:02:55]} 13. h4 {[%clk 0:02:40]}  Bb7 {[%clk 0:02:53]} 14. Bd3 {[%clk 0:02:40]}  Nb4 {[%clk 0:02:52]} 15. Kb1 {[%clk 0:02:39]}  Rc8 {[%clk 0:02:38]} 16. Qg3 {[%clk 0:02:35]}  Nxd3 {[%clk 0:02:13]} 17. cxd3 {[%clk 0:02:30]}  b4 {[%clk 0:02:06]} 18. Na4 {[%clk 0:02:26]}  Qc2+ {[%clk 0:02:05]} 19. Ka1 {[%clk 0:02:24]}  Qc6 {[%clk 0:02:06]} 20. Na5 {[%clk 0:02:19]}  Qxa4 {[%clk 0:01:59]} 21. Nxb7 {[%clk 0:02:18]}  Qb5 {[%clk 0:01:55]} 22. f5 {[%clk 0:01:58]}  Qxb7 {[%clk 0:01:47]} 23. fxe6 {[%clk 0:01:58]}  fxe6 {[%clk 0:01:48]} 24. Qg4 {[%clk 0:01:58]}  Nf8 {[%clk 0:01:43]} 25. h5 {[%clk 0:01:56]}  Qd7 {[%clk 0:01:36]} 0-1


[Site "https://www.chess.com"]

[Event "Titled Tuesday Blitz March 01 Late 2022"]
[White "Celestino, Rafael Teixeira"]
[Black "Sarkar, Justin"]
[WhiteFideId "2108925"]
[BlackFideId "2010011"]
[WhiteElo "2240"]
[BlackElo "2038"]
[Result "1-0"]
[Round "08"]
[TimeControl "180+1"]
[Date "2022.03.02"]
[WhiteClock "0:00:21"]
[BlackClock "0:00:01"]

1. e4 {[%clk 0:03:00]}  e5 {[%clk 0:02:58]} 2. Nf3 {[%clk 0:03:00]}  Nc6 {[%clk 0:02:56]} 3. Bc4 {[%clk 0:03:01]}  Nf6 {[%clk 0:02:55]} 4. Ng5 {[%clk 0:03:00]}  d5 {[%clk 0:02:53]} 5. exd5 {[%clk 0:03:01]}  Na5 {[%clk 0:02:52]} 6. Bb5+ {[%clk 0:03:01]}  c6 {[%clk 0:02:50]} 7. dxc6 {[%clk 0:03:02]}  bxc6 {[%clk 0:02:50]} 8. Qf3 {[%clk 0:03:03]}  Be7 {[%clk 0:02:31]} 9. Bxc6+ {[%clk 0:03:00]}  Nxc6 {[%clk 0:02:30]} 10. Qxc6+ {[%clk 0:03:01]}  Bd7 {[%clk 0:02:29]} 11. Qc3 {[%clk 0:02:57]}  O-O {[%clk 0:02:19]} 12. O-O {[%clk 0:02:53]}  Rc8 {[%clk 0:01:45]} 13. Qb3 {[%clk 0:02:38]}  h6 {[%clk 0:00:52]} 14. Nf3 {[%clk 0:02:36]}  e4 {[%clk 0:00:50]} 15. Ne5 {[%clk 0:02:04]}  Be6 {[%clk 0:00:47]} 16. Qa4 {[%clk 0:02:01]}  Bd6 {[%clk 0:00:28]} 17. f4 {[%clk 0:01:51]}  Qb6+ {[%clk 0:00:13]} 18. Kh1 {[%clk 0:01:43]}  Nd5 {[%clk 0:00:06]} 19. Qxe4 {[%clk 0:01:31]}  f5 {[%clk 0:00:06]} 20. Qf3 {[%clk 0:01:15]}  Rxc2 {[%clk 0:00:05]} 21. Nc3 {[%clk 0:01:06]}  Nb4 {[%clk 0:00:05]} 22. a3 {[%clk 0:00:55]}  Bxe5 {[%clk 0:00:05]} 23. axb4 {[%clk 0:00:25]}  Bd4 {[%clk 0:00:05]} 24. Qd3 {[%clk 0:00:21]}  Bb3 {[%clk 0:00:04]} 25. Ra3 {[%clk 0:00:20]}  Bxc3 {[%clk 0:00:01]} 26. bxc3 {[%clk 0:00:21]} 1-0


[Site "https://www.chess.com"]

[Event "Titled Tuesday Blitz March 01 Late 2022"]
[White "Cupid, Kevin"]
[Black "Leenhouts, Koen"]
[WhiteFideId "7700512"]
[BlackFideId "1008439"]
[WhiteElo "2096"]
[BlackElo "2409"]
[Result "1/2-1/2"]
[Round "08"]
[TimeControl "180+1"]
[Date "2022.03.02"]
[WhiteClock "0:00:01"]
[BlackClock "0:00:08"]

1. d3 {[%clk 0:02:59]}  e5 {[%clk 0:02:40]} 2. Nf3 {[%clk 0:02:57]}  Nc6 {[%clk 0:02:40]} 3. g3 {[%clk 0:02:56]}  Nf6 {[%clk 0:02:38]} 4. Bg2 {[%clk 0:02:55]}  d5 {[%clk 0:02:37]} 5. O-O {[%clk 0:02:56]}  Be7 {[%clk 0:02:34]} 6. Bg5 {[%clk 0:02:55]}  O-O {[%clk 0:02:32]} 7. c4 {[%clk 0:02:55]}  Be6 {[%clk 0:02:19]} 8. cxd5 {[%clk 0:02:55]}  Nxd5 {[%clk 0:02:17]} 9. Bxe7 {[%clk 0:02:54]}  Qxe7 {[%clk 0:02:18]} 10. Nc3 {[%clk 0:02:54]}  Nxc3 {[%clk 0:02:16]} 11. bxc3 {[%clk 0:02:55]}  Rad8 {[%clk 0:02:15]} 12. Qa4 {[%clk 0:02:52]}  Qc5 {[%clk 0:02:05]} 13. Rfc1 {[%clk 0:02:43]}  Rfe8 {[%clk 0:02:03]} 14. Nd2 {[%clk 0:02:40]}  Bd5 {[%clk 0:01:55]} 15. Bxd5 {[%clk 0:02:31]}  Qxd5 {[%clk 0:01:53]} 16. Rab1 {[%clk 0:02:29]}  b6 {[%clk 0:01:51]} 17. Rb5 {[%clk 0:02:18]}  Qd7 {[%clk 0:01:49]} 18. Qc4 {[%clk 0:02:08]}  Na5 {[%clk 0:01:42]} 19. Qb4 {[%clk 0:02:02]}  c5 {[%clk 0:01:39]} 20. Qa4 {[%clk 0:02:01]}  Nb7 {[%clk 0:01:32]} 21. Nc4 {[%clk 0:01:50]}  e4 {[%clk 0:01:18]} 22. Nb2 {[%clk 0:01:38]}  Nd6 {[%clk 0:01:15]} 23. Rb3 {[%clk 0:01:37]}  Qxa4 {[%clk 0:01:09]} 24. Nxa4 {[%clk 0:01:38]}  exd3 {[%clk 0:01:09]} 25. exd3 {[%clk 0:01:38]}  Nf5 {[%clk 0:01:03]} 26. Nb2 {[%clk 0:01:29]}  Re2 {[%clk 0:01:00]} 27. Kf1 {[%clk 0:01:29]}  Rde8 {[%clk 0:00:55]} 28. Rd1 {[%clk 0:01:16]}  h5 {[%clk 0:00:43]} 29. a4 {[%clk 0:01:11]}  Rc2 {[%clk 0:00:41]} 30. Re1 {[%clk 0:01:05]}  Rxe1+ {[%clk 0:00:39]} 31. Kxe1 {[%clk 0:01:06]}  g5 {[%clk 0:00:33]} 32. a5 {[%clk 0:00:59]}  bxa5 {[%clk 0:00:33]} 33. Nd1 {[%clk 0:00:59]}  h4 {[%clk 0:00:23]} 34. Ra3 {[%clk 0:00:58]}  h3 {[%clk 0:00:19]} 35. Rxa5 {[%clk 0:00:51]}  Nxg3 {[%clk 0:00:17]} 36. fxg3 {[%clk 0:00:51]}  Rxh2 {[%clk 0:00:16]} 37. Nf2 {[%clk 0:00:51]}  g4 {[%clk 0:00:12]} 38. Nxg4 {[%clk 0:00:48]}  Rg2 {[%clk 0:00:12]} 39. Kf1 {[%clk 0:00:29]}  Rxg3 {[%clk 0:00:11]} 40. Nf2 {[%clk 0:00:29]}  h2 {[%clk 0:00:11]} 41. Rxc5 {[%clk 0:00:25]}  Rxd3 {[%clk 0:00:10]} 42. Rh5 {[%clk 0:00:25]}  Rxc3 {[%clk 0:00:09]} 43. Rxh2 {[%clk 0:00:25]}  a5 {[%clk 0:00:10]} 44. Rh4 {[%clk 0:00:25]}  Rc1+ {[%clk 0:00:09]} 45. Ke2 {[%clk 0:00:25]}  Rc5 {[%clk 0:00:10]} 46. Nd3 {[%clk 0:00:24]}  Rf5 {[%clk 0:00:10]} 47. Ke3 {[%clk 0:00:22]}  Rd5 {[%clk 0:00:11]} 48. Ke4 {[%clk 0:00:22]}  Rb5 {[%clk 0:00:11]} 49. Rg4+ {[%clk 0:00:22]}  Kf8 {[%clk 0:00:10]} 50. Rg2 {[%clk 0:00:19]}  a4 {[%clk 0:00:10]} 51. Ra2 {[%clk 0:00:19]}  Ra5 {[%clk 0:00:11]} 52. Ra3 {[%clk 0:00:19]}  Ra8 {[%clk 0:00:10]} 53. Nc5 {[%clk 0:00:19]}  Ke7 {[%clk 0:00:11]} 54. Kd4 {[%clk 0:00:17]}  Rd8+ {[%clk 0:00:10]} 55. Kc4 {[%clk 0:00:17]}  Ra8 {[%clk 0:00:10]} 56. Kb4 {[%clk 0:00:17]}  Rb8+ {[%clk 0:00:09]} 57. Kc4 {[%clk 0:00:16]}  Ra8 {[%clk 0:00:10]} 58. Nxa4 {[%clk 0:00:15]}  Kf8 {[%clk 0:00:10]} 59. Kb4 {[%clk 0:00:15]}  Ra7 {[%clk 0:00:10]} 60. Rf3 {[%clk 0:00:14]}  Rb7+ {[%clk 0:00:11]} 61. Kc4 {[%clk 0:00:14]}  Rc7+ {[%clk 0:00:11]} 62. Nc5 {[%clk 0:00:14]}  Re7 {[%clk 0:00:11]} 63. Kd5 {[%clk 0:00:15]}  Re1 {[%clk 0:00:11]} 64. Ne4 {[%clk 0:00:14]}  Rd1+ {[%clk 0:00:11]} 65. Ke5 {[%clk 0:00:14]}  Re1 {[%clk 0:00:11]} 66. Kf5 {[%clk 0:00:15]}  Ke7 {[%clk 0:00:11]} 67. Rf4 {[%clk 0:00:13]}  Kf8 {[%clk 0:00:10]} 68. Nf6 {[%clk 0:00:13]}  Ra1 {[%clk 0:00:10]} 69. Nd7+ {[%clk 0:00:12]}  Ke7 {[%clk 0:00:09]} 70. Nb6 {[%clk 0:00:10]}  Ra5+ {[%clk 0:00:09]} 71. Kg4 {[%clk 0:00:11]}  Rb5 {[%clk 0:00:08]} 72. Nc4 {[%clk 0:00:10]}  f5+ {[%clk 0:00:08]} 73. Kg5 {[%clk 0:00:08]}  Ke6 {[%clk 0:00:08]} 74. Ne3 {[%clk 0:00:07]}  Re5 {[%clk 0:00:08]} 75. Ng2 {[%clk 0:00:05]}  Re4 {[%clk 0:00:08]} 76. Rxf5 {[%clk 0:00:03]}  Re5 {[%clk 0:00:07]} 77. Nf4+ {[%clk 0:00:03]}  Kd6 {[%clk 0:00:08]} 78. Rxe5 {[%clk 0:00:01]}  Kxe5 {[%clk 0:00:08]} 1/2-1/2


[Site "https://www.chess.com"]

[Event "Titled Tuesday Blitz March 01 Late 2022"]
[White "Curtis, John"]
[Black "Jaskolka, Tomasz"]
[WhiteFideId "3200256"]
[BlackFideId "1170791"]
[WhiteElo "2203"]
[BlackElo "2054"]
[Result "1/2-1/2"]
[Round "08"]
[TimeControl "180+1"]
[Date "2022.03.02"]
[WhiteClock "0:00:09"]
[BlackClock "0:00:07"]

1. d4 {[%clk 0:03:00]}  e6 {[%clk 0:02:59]} 2. e4 {[%clk 0:03:00]}  d5 {[%clk 0:02:59]} 3. e5 {[%clk 0:03:00]}  c5 {[%clk 0:02:59]} 4. c3 {[%clk 0:03:00]}  Nc6 {[%clk 0:02:59]} 5. Nf3 {[%clk 0:03:00]}  Bd7 {[%clk 0:02:58]} 6. Bd3 {[%clk 0:03:00]}  Qb6 {[%clk 0:02:52]} 7. O-O {[%clk 0:02:58]}  cxd4 {[%clk 0:02:53]} 8. cxd4 {[%clk 0:02:57]}  Nxd4 {[%clk 0:02:53]} 9. Nxd4 {[%clk 0:02:55]}  Qxd4 {[%clk 0:02:53]} 10. Nc3 {[%clk 0:02:56]}  a6 {[%clk 0:02:41]} 11. Re1 {[%clk 0:02:41]}  Ne7 {[%clk 0:02:20]} 12. Qf3 {[%clk 0:02:20]}  Nc6 {[%clk 0:02:08]} 13. Bf4 {[%clk 0:02:17]}  Qb6 {[%clk 0:02:02]} 14. Rad1 {[%clk 0:02:03]}  Be7 {[%clk 0:01:55]} 15. Qh5 {[%clk 0:01:56]}  g6 {[%clk 0:01:44]} 16. Qh6 {[%clk 0:01:55]}  Bf8 {[%clk 0:01:25]} 17. Qh3 {[%clk 0:01:51]}  Bg7 {[%clk 0:01:25]} 18. b3 {[%clk 0:01:35]}  Rd8 {[%clk 0:01:07]} 19. Na4 {[%clk 0:01:29]}  Qb4 {[%clk 0:00:58]} 20. Bd2 {[%clk 0:01:19]}  Qe7 {[%clk 0:00:57]} 21. Bf4 {[%clk 0:01:10]}  O-O {[%clk 0:00:55]} 22. Nb6 {[%clk 0:01:05]}  Qb4 {[%clk 0:00:48]} 23. Nxd7 {[%clk 0:01:03]}  Rxd7 {[%clk 0:00:48]} 24. Qe3 {[%clk 0:01:00]}  a5 {[%clk 0:00:24]} 25. Bg3 {[%clk 0:00:53]}  a4 {[%clk 0:00:22]} 26. Rb1 {[%clk 0:00:46]}  axb3 {[%clk 0:00:17]} 27. Rxb3 {[%clk 0:00:46]}  Qd4 {[%clk 0:00:17]} 28. Qe2 {[%clk 0:00:34]}  Ra8 {[%clk 0:00:17]} 29. Bb5 {[%clk 0:00:30]}  Rc7 {[%clk 0:00:13]} 30. h4 {[%clk 0:00:27]}  Qc5 {[%clk 0:00:07]} 31. Bxc6 {[%clk 0:00:23]}  bxc6 {[%clk 0:00:03]} 32. h5 {[%clk 0:00:24]}  Qc4 {[%clk 0:00:02]} 33. Qxc4 {[%clk 0:00:22]}  dxc4 {[%clk 0:00:02]} 34. Rb4 {[%clk 0:00:22]}  Rxa2 {[%clk 0:00:02]} 35. Rxc4 {[%clk 0:00:22]}  c5 {[%clk 0:00:02]} 36. Rec1 {[%clk 0:00:21]}  Ra5 {[%clk 0:00:02]} 37. Bf4 {[%clk 0:00:19]}  gxh5 {[%clk 0:00:02]} 38. Be3 {[%clk 0:00:19]}  Bf8 {[%clk 0:00:02]} 39. f4 {[%clk 0:00:19]}  Kg7 {[%clk 0:00:02]} 40. Kf2 {[%clk 0:00:19]}  Kg6 {[%clk 0:00:03]} 41. Kf3 {[%clk 0:00:19]}  Kf5 {[%clk 0:00:03]} 42. Rh1 {[%clk 0:00:20]}  Ra3 {[%clk 0:00:03]} 43. Rxh5+ {[%clk 0:00:18]}  Kg6 {[%clk 0:00:04]} 44. Rg5+ {[%clk 0:00:18]}  Kh6 {[%clk 0:00:04]} 45. f5 {[%clk 0:00:18]}  exf5 {[%clk 0:00:03]} 46. Rxf5+ {[%clk 0:00:17]}  Kg6 {[%clk 0:00:03]} 47. Rf6+ {[%clk 0:00:18]}  Kg7 {[%clk 0:00:04]} 48. Ke4 {[%clk 0:00:17]}  Be7 {[%clk 0:00:04]} 49. Bh6+ {[%clk 0:00:17]}  Kg8 {[%clk 0:00:04]} 50. Rb6 {[%clk 0:00:16]}  Rc8 {[%clk 0:00:04]} 51. e6 {[%clk 0:00:13]}  fxe6 {[%clk 0:00:04]} 52. Ke5 {[%clk 0:00:13]}  Bf8 {[%clk 0:00:03]} 53. Bxf8 {[%clk 0:00:12]}  Rxf8 {[%clk 0:00:03]} 54. Rxe6 {[%clk 0:00:10]}  Re3+ {[%clk 0:00:02]} 55. Kd6 {[%clk 0:00:10]}  Rxe6+ {[%clk 0:00:02]} 56. Kxe6 {[%clk 0:00:11]}  Rf2 {[%clk 0:00:02]} 57. g4 {[%clk 0:00:11]}  Kg7 {[%clk 0:00:02]} 58. Rxc5 {[%clk 0:00:09]}  Kg6 {[%clk 0:00:03]} 59. Rc8 {[%clk 0:00:07]}  h6 {[%clk 0:00:02]} 60. Rg8+ {[%clk 0:00:07]}  Kh7 {[%clk 0:00:02]} 61. Rc8 {[%clk 0:00:06]}  Kg7 {[%clk 0:00:03]} 62. Ke5 {[%clk 0:00:06]}  Kg6 {[%clk 0:00:03]} 63. Rg8+ {[%clk 0:00:05]}  Kh7 {[%clk 0:00:04]} 64. Ra8 {[%clk 0:00:06]}  Rf7 {[%clk 0:00:04]} 65. Ke4 {[%clk 0:00:05]}  Kg6 {[%clk 0:00:05]} 66. Ra5 {[%clk 0:00:05]}  Re7+ {[%clk 0:00:04]} 67. Kf4 {[%clk 0:00:04]}  Rc7 {[%clk 0:00:05]} 68. Kg3 {[%clk 0:00:04]}  Rc3+ {[%clk 0:00:05]} 69. Kh4 {[%clk 0:00:05]}  Rc1 {[%clk 0:00:05]} 70. Ra6+ {[%clk 0:00:05]}  Kf7 {[%clk 0:00:06]} 71. Ra7+ {[%clk 0:00:06]}  Kf6 {[%clk 0:00:06]} 72. Rh7 {[%clk 0:00:06]}  Kg6 {[%clk 0:00:06]} 73. Rc7 {[%clk 0:00:06]}  Kf6 {[%clk 0:00:07]} 74. Rxc1 {[%clk 0:00:06]}  Kg6 {[%clk 0:00:06]} 75. Rc5 {[%clk 0:00:07]}  Kf6 {[%clk 0:00:06]} 76. Rh5 {[%clk 0:00:08]}  Kg6 {[%clk 0:00:06]} 77. Kg3 {[%clk 0:00:08]}  Kf6 {[%clk 0:00:06]} 78. Kf4 {[%clk 0:00:09]}  Kg6 {[%clk 0:00:07]} 79. g5 {[%clk 0:00:10]}  Kxh5 {[%clk 0:00:07]} 80. gxh6 {[%clk 0:00:09]}  Kxh6 {[%clk 0:00:07]} 1/2-1/2


[Site "https://www.chess.com"]